Cogmind - Beta 15 @@@ ROGUE MODE // 2025.06.14 @ 20:48:56 Player: Mogwok Wargfriend Result: Core destroyed Performance ------------- Evolutions (3) 1500 Regions Visited (9) 1800 Robots Destroyed (105) 525 Value Destroyed (2454) 2454 Prototype IDs (30) 600 Alien Tech Used (0) 0 Bonus (148) 148 TOTAL SCORE: 7027 Bonus ------- High Alert Combat Kills 24 Follower Combat Kills 205 Aligned with FarCom 300 Friendly Fire -381 Cogmind --------- Core Integrity 0/700 Matter 300/300 Energy 100/100 System Corruption 14% Temperature Critical (968) Movement Core (50) Location -7/Zion Parts ------- > --- POWER (1) -------- (None) > --- PROPULSION (4) --- (None) > --- UTILITY (6) ------ (None) > --- WEAPON (2) ------- (None) > --- INVENTORY (5) ---- Small Storage Unit Advanced ECM Suite Makeshift System Shield Mobile Refinery Mk. CCLXVII Peak State ------------ > --- POWER ------------ Heavy Deuterium Engine > --- PROPULSION ------- Improved Carbon-fiber Leg Improved Titanium Leg Light Armored Exoskeleton > --- UTILITY ---------- Small Storage Unit Superbattery Improved Signal Interpreter Kinecellerator Improved Light Armor Plating Improved Shield Generator > --- WEAPON ----------- Gauss Cannon Gauss Cannon > --- INVENTORY -------- Deuterium Engine Improved Carbon-fiber Leg Improved Heat Sink Improved Sensor Array Advanced ECM Suite Utility Shielding Improved Grenade Launcher [Rating: 56] Favorites ----------- Power Heavy Ion Engine Engine Heavy Ion Engine Power Core Light Nuclear Core Propulsion Aluminum Leg Leg Aluminum Leg Utility Small Storage Unit Device Improved Shield Generator Storage Small Storage Unit Processor Improved Signal Interpreter Hackware Hacking Suite Protection Improved Light Armor Plating Weapon Hammer Energy Gun Gatling Laser Ballistic Gun Autogun Ballistic Cannon Gauss Cannon Launcher Grenade Launcher Special Weapon Mining Laser Impact Weapon Hammer Slashing Weapon Katana Build | -11 -10 -10 -10 -9 -8 -7 -7 -7 -7 ------- Run | Yrd Mat Min Exi Min Mat Fac Low Low Zio Slots Evolved 6 | . . . . . 4 2 . . . Power . | . . . . . . . . . . Propulsion 2 | . . . . . 1 1 . . . Utility 4 | . . . . . 3 1 . . . Weapon . | . . . . . . . . . . Parts Attached 76 | 7 9 4 . 7 16 22 1 6 4 Power 10 | 1 3 . . . 3 2 1 . . Engine 7 | 1 2 . . . 1 2 1 . . Core 3 | . 1 . . . 2 . . . . Reactor . | . . . . . . . . . . Propulsion 20 | 2 2 1 . 4 4 5 . 1 1 Treads . | . . . . . . . . . . Leg 20 | 2 2 1 . 4 4 5 . 1 1 Wheel . | . . . . . . . . . . Hover . | . . . . . . . . . . Flight . | . . . . . . . . . . Utility 23 | 2 1 1 . 1 7 9 . . 2 Device 10 | 1 1 1 . . 1 5 . . 1 Storage 2 | 1 . . . . . 1 . . . Processor 1 | . . . . . . 1 . . . Hackware 2 | . . . . . 1 1 . . . Protection 8 | . . . . 1 5 1 . . 1 Artifact . | . . . . . . . . . . Weapon 23 | 2 3 2 . 2 2 6 . 5 1 Energy Gun 5 | 1 . . . . . 2 . 1 1 Energy Cannon . | . . . . . . . . . . Ballistic Gun 4 | 1 . . . . 1 1 . 1 . Ballistic Cannon 5 | . 1 . . . . 2 . 2 . Launcher 3 | . . 2 . . 1 . . . . Special Weapon 1 | . . . . 1 . . . . . Impact Weapon 1 | . 1 . . . . . . . . Slashing Weapon 4 | . 1 . . 1 . 1 . 1 . Piercing Weapon . | . . . . . . . . . . Special Melee Weapon . | . . . . . . . . . . Unidentified Prototypes 3 | . 1 . . . . 1 . . 1 Parts Lost 28 | . 1 1 . 1 7 3 1 . 14 Power 5 | . 1 . . . 1 1 . . 2 Propulsion 3 | . . . . . 1 . . . 2 Utility 12 | . . 1 . . 3 1 . . 7 Weapon 8 | . . . . 1 2 1 1 . 3 Highest Loss Streak 14 | . 1 1 . 1 3 3 1 . 14 To Critical Strikes 2 | . . . . . . . 1 . 1 Average Backups 7 | 3 7 7 7 7 7 7 7 7 7 Power . | . 1 1 1 1 1 . 1 1 . Propulsion 1 | 1 1 1 1 1 1 . 1 1 . Utility 3 | . 1 1 1 2 3 4 4 4 3 Weapon 2 | . 3 4 4 3 2 1 1 1 1 Tool/Special . | . . . . . . . . . . Unused Backups 16 | . 6 1 . 3 2 2 . . 2 Power 2 | . 1 . . . 1 . . . . Propulsion 4 | . 3 . . 1 . . . . . Utility 4 | . . . . . 1 1 . . 2 Weapon 6 | . 2 1 . 2 . 1 . . . Tool/Special . | . . . . . . . . . . Average Slot Usage (%) 92 | . 99 95 100 99 91 91 92 83 73 Engine 7 | . 12 14 14 14 3 5 7 7 6 Core 1 | . . . . . 5 1 . . . Leg 23 | . 28 28 28 28 23 23 23 17 14 Device 8 | . 14 9 14 6 . 11 15 15 14 Storage 12 | . 14 14 14 14 9 11 15 15 14 Processor 2 | . . . . . . 6 7 7 6 Hackware 3 | . . . . . 8 5 . . . Protection 10 | . . . . 7 23 8 7 7 7 Energy Gun 2 | . 10 . . . . 3 7 3 . Ballistic Gun 2 | . 3 . . . 3 3 . . . Ballistic Cannon 2 | . 2 . . . . 6 7 3 . Launcher 2 | . . 14 28 6 . . . . . Special Weapon 1 | . . . . 1 2 . . . . Impact Weapon 4 | . 3 7 . 13 4 . . . . Slashing Weapon 3 | . 7 7 . 6 5 . . 3 6 Peak Build Rating 56 | 7 10 10 11 19 28 56 55 54 51 Average Rating 30 | 5 9 9 10 14 24 48 53 51 48 On Entrance 24 | . 7 10 10 11 19 28 55 54 50 Naked Turns 5 | . . . . . . . . . 5 Heaviest Build 45 | 15 19 20 20 25 29 45 39 38 39 Greatest Support 68 | 20 20 20 20 35 45 68 66 68 48 Greatest Overweight (x) 6 | 1 . . . . . 1 . . 6 Average Overweight (x) . | . . . . . . . . . . Largest Inventory Capacity 8 | 8 8 8 8 8 8 8 8 8 8 Average Capacity 7 | 7 8 8 8 8 8 8 8 8 7 Most Carried 8 | 5 8 8 8 8 8 8 8 8 8 Average Carried 7 | 3 7 7 7 7 7 7 7 7 7 Final Capacity 8 | 8 8 8 8 8 8 8 8 8 5 Final Carried 8 | 5 8 7 8 8 8 8 8 8 4 Class Distribution -------------------- 78% | Mutant 12% | Scavenger-Mutant 4% | Skirmisher 3% | Hacker-Skirmisher Dominant Class ---------------- Mutant | -10/Materials Mutant | -10/Mines Mutant | -10/Exiles Mutant | -9/Mines Mutant | -8/Materials Mutant | -7/Factory Mutant | -7/Lower Caves Mutant | -7/Lower Caves Mutant | -7/Zion Resources | -11 -10 -10 -10 -9 -8 -7 -7 -7 -7 ----------- Run | Yrd Mat Min Exi Min Mat Fac Low Low Zio Matter Collected 2426 | 294 185 10 . 170 526 937 124 95 85 Remotely . | . . . . . . . . . . Salvage Created 3465 | 124 401 97 . 445 1054 980 141 146 77 Parts 170 | 5 31 5 . 27 36 43 12 4 7 Haulers Intercepted 3 | . 2 . . . 1 . . . . Recyclers Shooed 11 | . 2 . . . 3 6 . . . Parts Field Recycled . | . . . . . . . . . . Retrieved Matter . | . . . . . . . . . . Parts Self-Destructed 12 | . . . . . . . 12 . . Prevented . | . . . . . . . . . . Kills | -11 -10 -10 -10 -9 -8 -7 -7 -7 -7 ------- Run | Yrd Mat Min Exi Min Mat Fac Low Low Zio Combat Hostiles Destroyed 54 | . 8 2 . 4 18 15 7 . . Melee 11 | . . 2 . 3 6 . . . . Guns 19 | . 8 . . . 3 5 3 . . Cannons 11 | . . . . . . 7 4 . . AOE 11 | . . . . . 8 3 . . . Classes Destroyed 14 | 2 4 1 . 1 3 2 . . 1 Worker 7 | . . 1 . 2 3 1 . . . Builder 10 | . . . . 2 8 . . . . Tunneler 6 | 3 . . . 3 . . . . . Hauler 3 | . 2 . . . 1 . . . . Recycler 12 | 1 1 . . 2 1 7 . . . Operator 1 | . . . . . 1 . . . . Watcher 6 | . 2 . . . 3 1 . . . Swarmer 22 | . 6 . . 4 1 4 7 . . Grunt 21 | . 2 2 . . 12 5 . . . Brawler 1 | . . . . . . 1 . . . Sentry 6 | . . . . . 4 2 . . . Hunter 1 | . . . . . 1 . . . . Programmer 3 | . . . . . . 3 . . . Zionite 5 | . . . . . . . . . 5 Thug 1 | . . . . 1 . . . . . Best Kill Streak 8 | 4 5 2 . 3 4 8 4 . 5 Combat Bots Only 5 | . 5 2 . 2 4 5 4 . . Max Kills in Single Turn 3 | 1 2 1 . 1 3 2 2 . 1 Gunslinging 1 | . 1 . . . . . . . . Exploded 3 | . . . . . 3 1 . . . Melee 1 | . . 1 . 1 1 . . . . Uniques/NPCs Destroyed . | . . . . . . . . . . Combat | -11 -10 -10 -10 -9 -8 -7 -7 -7 -7 -------- Run | Yrd Mat Min Exi Min Mat Fac Low Low Zio Hostile Shots Fired 648 | . 37 23 . 11 139 232 40 2 164 Missed 198 | . 7 9 . 3 49 84 10 . 36 Hits 450 | . 30 14 . 8 90 148 30 2 128 Melee 27 | . . . . 1 . 3 . 2 21 Projectile 423 | . 30 14 . 7 90 145 30 . 107 Critical Strikes 23 | . . . . . . 6 1 . 16 Part Disruptions 1 | . . . . . . . . . 1 Damage Taken 6478 | . 305 207 . 405 1466 1436 343 . 2316 Core 1106 | . 46 28 . 111 138 60 31 . 692 Absorbed by Shields 569 | . . . . . . 285 130 . 154 Redirected to Shielding 52 | . . . . . 23 5 . . 24 Regen/Repaired (Parts) 258 | . 7 . . . 115 136 . . . Core Remaining (%) 66 | 100 . . . 26 74 . . . . Volleys Fired 264 | 8 32 . . 8 112 87 9 2 6 Largest 2 | 2 2 . . 1 2 2 2 2 2 Hottest 123 | 70 80 . . 100 123 120 120 103 120 Shots Fired 400 | 16 62 . . 8 128 153 18 3 12 Gun 182 | 16 54 . . . 34 60 9 3 6 Cannon 99 | . 8 . . . . 76 9 . 6 Launcher 18 | . . . . . 15 3 . . . Special 101 | . . . . 8 79 14 . . . Kinetic 182 | 8 30 . . . 34 94 9 1 6 Thermal 198 | 8 32 . . 8 79 54 9 2 6 Explosive 18 | . . . . . 15 3 . . . Electromagnetic 2 | . . . . . . 2 . . . Robot Hit Streak 12 | 7 9 . . . 6 12 4 5 2 Robot Miss Streak 9 | 1 4 . . . 4 6 9 2 6 Penetration Max 1 | . . . . . . 1 . . 1 Secondary Targets 2 | . 2 . . . . . . . . Max Gunslinging Chain 1 | . 1 . . . . . . . . Shots Hit Robots 273 | 13 32 10 . 18 84 90 10 8 8 Core Hits 134 | 5 16 4 . 9 39 44 12 . 5 Critical Kills 3 | . . . . 1 2 . . . . Critical Parts Destroyed 16 | . . . . 2 14 . . . . Critical Strikes 32 | . 1 . . 3 16 9 2 . 1 Burn 1 | . 1 . . . . . . . . Blast 12 | . . . . . . 9 2 . 1 Smash 19 | . . . . 3 16 . . . . Melee Attacks 312 | . 25 11 . 118 137 6 . 6 9 Impact 180 | . 1 2 . 69 108 . . . . Slashing 132 | . 24 9 . 49 29 6 . 6 9 Piercing . | . . . . . . . . . . Sneak Attacks 33 | . 2 3 . 11 16 . . . 1 Combat Hostiles 1 | . . 1 . . . . . . . Follow-up Attacks 11 | . . 1 . 4 6 . . . . Damage Inflicted 8505 | 166 528 301 . 770 3134 2486 258 514 348 Guns 2048 | 166 347 . . . 297 933 151 56 98 Cannons 1520 | . 16 . . . . 1260 107 . 137 Explosions 1216 | . . . . 5 925 286 . . . Melee 3690 | . 165 301 . 765 1888 . . 458 113 Ramming 7 | . . . . . . 7 . . . Kinetic 2284 | 65 214 . . . 297 1452 107 12 137 Thermal 1338 | 101 149 . . 5 49 741 151 44 98 Explosive 1186 | . . . . . 900 286 . . . Electromagnetic . | . . . . . . . . . . Impact 2193 | . . 17 . 568 1608 . . . . Slashing 1497 | . 165 284 . 197 280 . . 458 113 Piercing . | . . . . . . . . . . Highest Corruption 14 | . . . . . . 2 2 2 14 Average Corruption 1 | . . . . . . 1 2 2 3 Corruption Purged . | . . . . . . . . . . Corruption Blocked . | . . . . . . . . . . Effects 64 | . . . . . . 28 16 16 4 Message Errors 18 | . . . . . . 9 4 3 2 Matter Fused 19 | . . . . . . 11 3 4 1 Heat Flow Errors 7 | . . . . . . . 2 4 1 Energy Discharges 9 | . . . . . . 3 2 4 . Parts Fused 2 | . . . . . . 2 . . . Data Loss (minor) 6 | . . . . . . 2 3 1 . Data Loss (major) 2 | . . . . . . 1 1 . . Misfires 1 | . . . . . . . 1 . . Overload Shots . | . . . . . . . . . . Overflow Damage 1144 | . . 8 . 194 672 16 . 254 . Projectiles 16 | . . . . . . 16 . . . Explosions 36 | . . . . . 36 . . . . Melee 1092 | . . 8 . 194 636 . . 254 . Knockbacks 23 | . . . . 3 13 6 . . 1 Impact 16 | . . . . 3 13 . . . . Kinetic 7 | . . . . . . 6 . . 1 Secondary . | . . . . . . . . . . Self-Inflicted Damage 197 | . . . . 56 101 40 . . . Shots 6 | . . . . 1 4 1 . . . Rammed . | . . . . . . . . . . Targets Rammed 2 | . . . . . . 2 . . . Kicked 2 | . . . . . . 2 . . . Crushed . | . . . . . . . . . . Highest Temperature 968 | 54 126 . . 180 320 156 199 261 968 Average Temperature 65 | 24 43 . . 84 60 23 30 99 520 Received Heat Transfer 2118 | . 57 114 . 18 549 232 . . 1148 Effects 8 | . . . . . 1 . . . 7 Energy Bleed 3 | . . . . . . . . . 3 Interference 1 | . . . . . 1 . . . . Short Circuit 1 | . . . . . . . . . 1 Damage (minor) 1 | . . . . . . . . . 1 Damage (core) 2 | . . . . . . . . . 2 Siege Activations . | . . . . . . . . . . Martial Activations . | . . . . . . . . . . Shielding Activations . | . . . . . . . . . . Robots Disrupted . | . . . . . . . . . . Combat Hostiles . | . . . . . . . . . . Robots Corrupted 13 | . . . . 4 9 . . . . Combat Hostiles 2 | . . . . 1 1 . . . . Parts Fried 20 | . . . . 7 13 . . . . Impact Corruptions 38 | . . . . 9 29 . . . . Robots Melted . | . . . . . . . . . . Combat Hostiles . | . . . . . . . . . . Parts Melted 3 | . . . . . 1 1 . . 1 Heat Transferred 3264 | 296 518 . . 50 100 1625 350 100 225 Parts Sabotaged . | . . . . . . . . . . Parts Stolen 2 | . . . . . . . . 2 . Parts Stripped . | . . . . . . . . . . Power Chain Reactions . | . . . . . . . . . . Alert | -11 -10 -10 -10 -9 -8 -7 -7 -7 -7 ------- Run | Yrd Mat Min Exi Min Mat Fac Low Low Zio Maximum Alert Level 2 | . . . . . 2 1 . . . Low Security (%) 88 | 100 100 100 . 100 92 67 . . . Level 1 10 | . . . . . 4 32 . . . Level 2 1 | . . . . . 3 . . . . Level 3 . | . . . . . . . . . . Level 4 . | . . . . . . . . . . Level 5 . | . . . . . . . . . . High Security . | . . . . . . . . . . Max Security . | . . . . . . . . . . Peak Influence 551 | 10 145 50 . 153 551 342 . . . Initial 249 | . . . . . 54 249 . . . Average 90 | 1 36 10 . 67 88 151 . . . Influence Increases 2807 | 20 320 55 . 535 982 735 160 . . Destroy 0b10 Robot/C 1300 | . 160 40 . 280 380 300 140 . . Destroy 0b10 Robot/NC 225 | 20 25 5 . 45 85 45 . . . Destroy Leader 288 | . 38 10 . 50 98 72 20 . . Allied During Kill 84 | . . . . 82 2 . . . . Successful Hack 145 | . 41 . . . 26 78 . . . Disable Machine 210 | . . . . 30 75 105 . . . Destroy Structure 345 | . 11 . . 33 211 90 . . . Lose Combat Pursuer 210 | . 45 . . 15 105 45 . . . Influence Decreases 2807 | 20 320 55 . 394 573 945 500 . . Entered New Map 514 | . . . . . 87 301 126 . . Time Decay 2136 | 20 300 55 . 344 411 642 364 . . Lost Part 100 | . 10 . . 10 70 . 10 . . Lost Ally 55 | . 10 . . 40 5 . . . . Purge Threat 2 | . . . . . . 2 . . . Squads Dispatched 17 | . . . . . 6 11 . . . Investigation 5 | . . . . . 2 3 . . . Extermination 4 | . . . . . . 4 . . . Reinforcement 5 | . . . . . 4 1 . . . Assault . | . . . . . . . . . . Garrison 3 | . . . . . . 3 . . . Intercept . | . . . . . . . . . . Searches Triggered . | . . . . . . . . . . Construction Impeded 2 | . . . . . 2 . . . . Haulers Reinforced . | . . . . . . . . . . Active Scanning Responses . | . . . . . . . . . . Cargo Convoy Interrupts . | . . . . . . . . . . Stealth | -11 -10 -10 -10 -9 -8 -7 -7 -7 -7 --------- Run | Yrd Mat Min Exi Min Mat Fac Low Low Zio Distress Signals 6 | . 2 . . . 3 1 . . . Communications Jammed . | . . . . . . . . . . Distress Signals . | . . . . . . . . . . Times Spotted 129 | . 17 2 . 15 33 36 7 2 17 Peak Tracking Total 15 | . 5 2 . 3 5 5 4 2 15 Tactical Retreats 11 | . 1 . . 1 5 3 . . 1 Traps | -11 -10 -10 -10 -9 -8 -7 -7 -7 -7 ------- Run | Yrd Mat Min Exi Min Mat Fac Low Low Zio Traps Triggered 7 | . 1 . . . 2 4 . . . Indirectly . | . . . . . . . . . . Trap Hack Attempts . | . . . . . . . . . . Triggered . | . . . . . . . . . . Disarmed . | . . . . . . . . . . Reprogrammed . | . . . . . . . . . . Reused . | . . . . . . . . . . Traps Extracted . | . . . . . . . . . . Installed . | . . . . . . . . . . Triggered . | . . . . . . . . . . Machines | -11 -10 -10 -10 -9 -8 -7 -7 -7 -7 ---------- Run | Yrd Mat Min Exi Min Mat Fac Low Low Zio Machines Disabled 14 | . . . . 2 5 7 . . . Max in Single Turn 2 | . . . . 1 1 2 . . . Machines Repaired . | . . . . . . . . . . Machines Dismantled . | . . . . . . . . . . Machines Sabotaged . | . . . . . . . . . . Overloaded Fab Kills . | . . . . . . . . . . Hacking | -11 -10 -10 -10 -9 -8 -7 -7 -7 -7 --------- Run | Yrd Mat Min Exi Min Mat Fac Low Low Zio Machines Accessed 26 | . 9 . 1 . 8 7 . 1 . Terminals 17 | . 7 . . . 5 5 . . . Fabricators . | . . . . . . . . . . Repair Stations 3 | . 1 . . . 1 1 . . . Recycling Units 3 | . 1 . . . 2 . . . . Scanalyzers . | . . . . . . . . . . Garrison Access 1 | . . . . . . 1 . . . Total Hacks 70 | . 24 . 1 . 23 21 . 1 . Successful 44 | . 15 . 1 . 15 12 . 1 . Failed 25 | . 9 . . . 7 9 . . . Catastrophic 7 | . 3 . . . . 4 . . . Database Lockouts 1 | . . . . . 1 . . . . Manual 43 | . 16 . 1 . 13 12 . . 1 Terminals 49 | . 20 . . . 14 15 . . . Fabricators . | . . . . . . . . . . Repair Stations 10 | . 2 . . . 4 4 . . . Recycling Units 7 | . 2 . . . 5 . . . . Scanalyzers . | . . . . . . . . . . Garrison Access 2 | . . . . . . 2 . . . Terminal Hacks 18 | . 7 . 1 . 3 6 . 1 . Record 3 | . 2 . . . . . . 1 . Robot Analysis 2 | . 1 . . . 1 . . . . Prototype ID Bank 2 | . 1 . . . 1 . . . . Branch Access Points 2 | . . . . . 1 1 . . . Terminal Index 2 | . 1 . . . . 1 . . . Unreport Threat 1 | . . . . . . 1 . . . Locate Traps 4 | . 2 . . . . 2 . . . Recall Reinforcements 1 | . . . . . . 1 . . . Proto ID Catalog 1 | . . . 1 . . . . . . Fabricator Hacks . | . . . . . . . . . . Repair Station Hacks 10 | . 2 . . . 4 4 . . . Scan Component 5 | . 1 . . . 2 2 . . . Repair 5 | . 1 . . . 2 2 . . . Recycling Unit Hacks 4 | . 1 . . . 3 . . . . Report Inventory 3 | . 1 . . . 2 . . . . Retrieve Components 1 | . . . . . 1 . . . . Scanalyzer . | . . . . . . . . . . Garrison Access Hacks . | . . . . . . . . . . Unauthorized Hacks 12 | . 5 . . . 5 2 . . . Terminals 9 | . 4 . . . 3 2 . . . Botnet 6 | . 3 . . . 2 1 . . . Operators 3 | . 1 . . . 1 1 . . . Fabricators . | . . . . . . . . . . Repair Stations . | . . . . . . . . . . Recycling Units 3 | . 1 . . . 2 . . . . Reject 3 | . 1 . . . 2 . . . . Scanalyzers . | . . . . . . . . . . Garrison Access . | . . . . . . . . . . Data Cores Recovered . | . . . . . . . . . . Used . | . . . . . . . . . . Hacking Detections 20 | . 9 . . . 4 7 . . . Full Trace Events 1 | . . . . . . 1 . . . Feedback Events . | . . . . . . . . . . Feedback Blocked . | . . . . . . . . . . Robot Schematics Acquired . | . . . . . . . . . . Robots Built . | . . . . . . . . . . Authchips . | . . . . . . . . . . Time . | . . . . . . . . . . Total Robot Build Rating . | . . . . . . . . . . Part Schematics Acquired . | . . . . . . . . . . Parts Built . | . . . . . . . . . . Authchips . | . . . . . . . . . . Time . | . . . . . . . . . . Total Part Build Rating . | . . . . . . . . . . Parts Repaired 5 | . 1 . . . 2 2 . . . Time 143 | . 26 . . . 76 41 . . . Parts Recycled . | . . . . . . . . . . Recycled Matter . | . . . . . . . . . . Retrieved Matter . | . . . . . . . . . . Retrieved Components 3 | . . . . . 3 . . . . Parts Scanalyzed . | . . . . . . . . . . Part Schematics Acquired . | . . . . . . . . . . Parts Damaged . | . . . . . . . . . . Bothacking | -11 -10 -10 -10 -9 -8 -7 -7 -7 -7 ------------ Run | Yrd Mat Min Exi Min Mat Fac Low Low Zio Used RIF Installer . | . . . . . . . . . . Robots Hacked . | . . . . . . . . . . Non-combat . | . . . . . . . . . . Combat . | . . . . . . . . . . Robot Hacks Applied . | . . . . . . . . . . Relay Couplers Released . | . . . . . . . . . . Fabnet Peak Effective % . | . . . . . . . . . . Robots Rewired 1 | . 1 . . . . . . . . Allies Hacked . | . . . . . . . . . . Hacks Repelled . | . . . . . . . . . . Allies | -11 -10 -10 -10 -9 -8 -7 -7 -7 -7 -------- Run | Yrd Mat Min Exi Min Mat Fac Low Low Zio Total Allies 7 | . 1 . . 6 . . . . . Largest Group 5 | . 1 . . 5 1 . . . . Highest-Rated Group 102 | . 8 . . 102 16 . . . . Highest-Rated Ally 31 | . 8 . . 31 16 . . . . Total Orders 1 | . 1 . . . . . . . . COLLECT 1 | . 1 . . . . . . . . Ally Attacks 56 | . . . . 46 10 . . . . Total Damage 604 | . . . . 499 105 . . . . Kills 11 | . . . . 10 1 . . . . Allies Corrupted . | . . . . . . . . . . Allies Melted . | . . . . . . . . . . Intel | -11 -10 -10 -10 -9 -8 -7 -7 -7 -7 ------- Run | Yrd Mat Min Exi Min Mat Fac Low Low Zio Active Infowar (turns) 2436 | 15 1299 48 . . . 1074 . . . Sensors 1465 | . 343 48 . . . 1074 . . . Seismic 971 | 15 956 . . . . . . . . Robot Analysis Total 2 | . 1 . . . 1 . . . . Derelict Logs Recovered 8 | . . 2 . 2 . . 1 2 1 Drone Launches . | . . . . . . . . . . Drone Recoveries . | . . . . . . . . . . Exploration | -11 -10 -10 -10 -9 -8 -7 -7 -7 -7 ------------- Run | Yrd Mat Min Exi Min Mat Fac Low Low Zio Turns Passed 13708 | 98 1301 236 551 2404 3565 2732 914 1417 490 Spaces Moved 8562 | 51 860 154 459 1331 1913 1710 701 1059 324 Core 13 | 7 . . . . . . . . 6 Treads . | . . . . . . . . . . Legs 8549 | 44 860 154 459 1331 1913 1710 701 1059 318 Wheels . | . . . . . . . . . . Hover . | . . . . . . . . . . Flight . | . . . . . . . . . . Fastest Speed 50 | 50 120 120 120 120 105 105 126 126 50 Average Speed 125 | 115 120 120 120 129 122 125 126 129 129 Slowest Speed 350 | 120 120 120 120 130 130 195 126 130 350 Overloaded Moves . | . . . . . . . . . . Propulsion Burnouts . | . . . . . . . . . . Robots Hopped . | . . . . . . . . . . Potential Cave-ins 2 | . . . . 2 . . . . . Cave-ins Triggered 1 | . . . . 1 . . . . . Exploration Rate (%) 61 | 4 99 30 91 102 52 37 77 95 31 Regions Visited 9 Branch Regions 6 Pre-discovered Areas 2 | . . . . 1 . . . . 1 Known Exits Taken 3 | . . . . . . 1 1 1 . Unknown Exits Taken 6 | 1 1 1 1 1 1 . . . . Scrap Searched 10 | . . . . 3 . . 3 4 . Spaces Dug 148 | . 12 . . 55 79 . . 1 1 Terrain Destroyed 455 | . 12 . . 67 273 99 2 1 1 Melee 100 | . 12 . . 50 36 . . 1 1 Projectile 109 | . . . . 7 68 32 2 . . AOE 246 | . . . . 10 169 67 . . . Terrain Rammed . | . . . . . . . . . . Walls Destroyed . | . . . . . . . . . . Machines Disabled . | . . . . . . . . . . Actions | -11 -10 -10 -10 -9 -8 -7 -7 -7 -7 --------- Run | Yrd Mat Min Exi Min Mat Fac Low Low Zio Total 10462 | 70 1027 187 459 1797 2651 2106 713 1088 364 Wait 1133 | . 64 18 . 334 476 226 . 2 13 Move 8553 | 50 859 153 458 1330 1912 1709 700 1058 324 Hop . | . . . . . . . . . . Pick Up 47 | 5 13 . 1 2 8 11 1 4 2 Fast Attach 47 | 7 5 1 . 2 10 17 1 4 . Attach 24 | . . 1 . . 4 10 1 1 7 Detach 13 | . 1 1 . . 1 7 . 1 2 Swap 33 | . 4 2 . 12 6 8 . 1 . Drop 68 | . 16 2 . 7 9 23 1 9 1 Fire 264 | 8 32 . . 8 112 87 9 2 6 Melee 269 | . 24 9 . 102 113 6 . 6 9 Ram . | . . . . . . . . . . Kick 2 | . . . . . . 2 . . . Crush . | . . . . . . . . . . Escape Stasis . | . . . . . . . . . . Rewire 9 | . 9 . . . . . . . . Trap . | . . . . . . . . . . Miscellaneous . | . . . . . . . . . . Route ------- -11/Scrapyard -10/Materials (discovered 6 exits: [*Mat x3] / [*Min x2] / [*Sub]) -10/Mines (discovered 3 exits: [*Mat x2] / *Exi) -10/Exiles -9/Mines (discovered 2 exits: *Mat x2) -8/Materials (discovered 3 exits: *Fac / *Sto x2) -7/Factory (discovered 2 exits: *Low x2) -7/Lower Caves -7/Lower Caves (discovered 2 exits: *Fac / *Zio) -7/Zion History --------- Turn | Location | Event 25 | -11/Scrapyard | Discovered new exit (range 16) 99 | -11/Scrapyard | Entered Materials 310 | -10/Materials | Build established: Mutant 335 | -10/Materials | Discovered new exit (range 6) 457 | -10/Materials | Discovered new exit (range 10) 529 | -10/Materials | Discovered new exit (range 16) 795 | -10/Materials | Discovered new exit (range 6) 893 | -10/Materials | Discovered new exit (range 16) 1121 | -10/Materials | Repaired Heat Sink 1146 | -10/Materials | Discovered new exit (range 9) 1400 | -10/Materials | Entered Mines 1406 | -10/Mines | Learned Materials terminal intel 1437 | -10/Mines | Discovered new exit (range 7) 1496 | -10/Mines | Learned 2 Materials zone layouts 1508 | -10/Mines | Assembled infested the area 1512 | -10/Mines | YI-UF0 nonchalantly dropped a Grenade Launcher on the ground 1513 | -10/Mines | Assisted by a Guerilla fighting off Assembled 1546 | -10/Mines | Deemed a non-threat by the Exiles lab entrance 1547 | -10/Mines | Discovered new exit (range 5) 1585 | -10/Mines | Discovered new exit (range 14) 1636 | -10/Mines | Entered Exiles 1666 | -10/Exiles | Met 8R-AWN 1683 | -10/Exiles | Met EX-HEX 1753 | -10/Exiles | Met EX-DEC 1771 | -10/Exiles | Visited The Gauntlet 1933 | -10/Exiles | Met EX-BIN 1948 | -10/Exiles | Aligned with FarCom system 1950 | -10/Exiles | Given EX-Vault access code 2013 | -10/Exiles | Opened EX-Vault 2042 | -10/Exiles | Found Superbattery 2065 | -10/Exiles | Warned to stay clear of 0b10 Research branches 2169 | -10/Exiles | Discovered new exit (range 10) 2187 | -10/Exiles | Left Exiles lab with Superbattery 2187 | -10/Exiles | Entered Mines 2190 | -9/Mines | Assisted by bots powering up and referring to "LRC-V3" 2533 | -9/Mines | Discovered new exit (range 9) 2953 | -9/Mines | Crushed by falling debris 2953 | -9/Mines | Core integrity fell below 50% 3412 | -9/Mines | Learned location of 1 exit from Materials 3478 | -9/Mines | Received a Mining Laser from a helpful Derelict 3547 | -9/Mines | Discovered new exit (range 13) 3812 | -9/Mines | Learned location of Zion (-7) 4591 | -9/Mines | Entered Materials 4591 | -8/Materials | Accompanied by 1 ally 4591 | -8/Materials | Evolved 4 slots: Propulsion x1, Utility x3 4592 | -8/Materials | Identified exit to Storage 4594 | -8/Materials | Loaded intel: 12 terminal locations 6165 | -8/Materials | Discovered new exit (range 12) 6260 | -8/Materials | Build established: Scavenger-Mutant 6615 | -8/Materials | Lost 3 parts (1u2w) 6781 | -8/Materials | Central database locked down 7720 | -8/Materials | Repaired Carbon-fiber Leg 7760 | -8/Materials | Repaired Lgt. Nuclear Core 7869 | -8/Materials | Build established: Mutant 8156 | -8/Materials | Entered Factory 8156 | -7/Factory | Evolved 2 slots: Propulsion x1, Utility x1 8754 | -7/Factory | Build established: Hacker-Skirmisher 8872 | -7/Factory | Lost 3 parts (1p1u1w) 9140 | -7/Factory | Build established: Skirmisher 9334 | -7/Factory | Garrison activated, responded to threat 9711 | -7/Factory | Build established: Mutant 10209 | -7/Factory | Repaired Imp. Light Armor Plating 10232 | -7/Factory | Repaired Imp. Shield Generator 10534 | -7/Factory | Identified exit to Lower Caves 10888 | -7/Factory | Entered Lower Caves 11394 | -7/Lower Caves | Discovered new exit (range 9) 11403 | -7/Lower Caves | Identified exit to Lower Caves 11417 | -7/Lower Caves | Learned Factory emergency access door positions 11802 | -7/Lower Caves | Entered another Lower Caves area 11810 | -7/Lower Caves | Learned Factory stockpile data 11885 | -7/Lower Caves | Learned Factory trap positions 11932 | -7/Lower Caves | Discovered new exit (range 5) 11937 | -7/Lower Caves | Identified exit to Factory 12173 | -7/Lower Caves | Encountered a Warlord checkpoint 12652 | -7/Lower Caves | Entered a destroyed Warlord outpost 13147 | -7/Lower Caves | Discovered new exit (range 5) 13151 | -7/Lower Caves | Identified exit to Zion 13219 | -7/Lower Caves | Entered Zion 13335 | -7/Zion | System corruption cleaned by Quarantine Array 13366 | -7/Zion | Received a hallucinogenic algorithm 13366 | -7/Zion | Ran a hallucination algorithm 13463 | -7/Zion | Learned location of Armory (-4) 13507 | -7/Zion | Learned Factory stockpile data 13565 | -7/Zion | Found Prototype Device 13644 | -7/Zion | Attacked by Zionites 13676 | -7/Zion | Identified Mobile Refinery Mk. CCLXVII 13706 | -7/Zion | Core integrity fell below 50% 13706 | -7/Zion | System corruption reached 10% 13707 | -7/Zion | Core integrity fell below 20% 13710 | -7/Zion | Core destroyed Last Messages --------------- damaged (-4). 13699_ System corrupted: Heat flow error (+117). 13699_ Gatling Laser destroyed. 13699_ Imp. Carbon-fiber Leg destroyed. 13700_ Imp. Signal Interpreter broken. 13700_ Overheating: Short circuit. 13702_ Lyr. Light Armor Plating destroyed. 13703_ Utility Shielding destroyed. 13703_ Critical hit (Burn: +37). 13705_ Critical hit (Smash). 13705_ Superbattery destroyed. 13705_ Broken Imp. Signal Interpreter destroyed. 13705_ System corrupted by crushing effect (+4). 13705_ System corrupted by crushing effect (+1). 13705_ Critical hit (Impale). 13706_ Critical hit (Burn: +37). 13707_ Overheating: Core damaged (-133). 13707_ Acquired Unknown Hackware. 13709_ Critical hit (Burn: +80). 13710_ Overheating: Core damaged (-105). Map ----- +----------------------------------------------------+ | ??????????????????????????????????????????????## X | | ??????????????????????????????????????????????# | | ?????????????????????????????????????????"???## | | ????????????????????????????????????????"""###" | | ??????????????????????????????????????? """"""" | | ???????????????????????????????????? """" | | ??????????????????????????????????? """ | | ??????????????????????????????????? """ | | ?????????????????????????????????? """ | | ????????????????????????????????? """ | | ????????????????????????????????? | | ????????????????????????????????? " | | ????????????????????????????????? " | | ???????????????????####??????????" "" | | ???????????????????" "##??????????? ? """ | | ?????????????#???#"" "##???????????? """"" | | ?????????????"???# ! ""#????????????? """" | | ???##????#### ???#"" ""#????????????? """#"""" | | ??"?"###"""" ##??##" "#####??????????????#""""" | | ??#"#"""""" "#??# ##"""##?????????????##"""" | | ??#""" " #### c """#####????????##""""" | | ?""#" """" # ; """"""#" ????"""""""" | | ?##"" """"" """" """"""" """ | | """"" """ """ g% """ """ | | zzsb """ | | i% @ " """ | | =!i il "" """ | | """"" " %=/z ""# " """" """ | | """ """""" " =%* """""""" """"""""" """ | | """ """"##"" ""*=["" " """ """"""""""""" """ | | """""""#"""" " """"" """"""?"""" """ | | """??"#"""" """" ""#"#""" "" | | ??????"""" """ "#"#"" """ "" | | ???""" "" """"" "" "#" "" | | ??"" " " " "#"""""" """ "" | | ??#" """""""""" """""""" "" "# | | ??"""" """###""" "" """"""" """ | | ????"" "#"??##""" """ """" """ | | ??? ??????#"""" "" """ | | ??? ????????####"" """ | | ??"""????????????##"" """"""" | | ?????????????????#"""" """"""""""" | | ?????????????????####"" """"" """#####"#### | | ???????????????????#"""""""#"" """""""#??###??? | | ????????????????????#""""####"" """#######???????? | | ????????????????????######??#"""""##?????????????? | | ????????????????????????????##"""##??????????????? | | ?????????????????????????????#####???????????????? | | ?????????????????????????????????????????????????? | | ?????????????????????????????????????????????????? | +----------------------------------------------------+ Best States ------------- Heat Dissipation 48 Energy Generation 18 Energy Capacity 1810 Matter Stores 300 Matter Capacity 300 Sight Range 16 Robot Scan Range 15 Terrain Scan Density 10 Armor Coverage 375 Resistance: EM 15 Utility Shielding 33 Evasion (%) 55 Kinecelleration 30 Offensive Hacking 20 Item Schematics ----------------- None Robot Schematics ------------------ None Fabricated ------------ Nothing Repaired ---------- Heat Sink | 76% | -10/Materials Carbon-fiber Leg | 31% | -8/Materials Lgt. Nuclear Core | 20% | -8/Materials Imp. Light Armor Plating | 39% | -7/Factory Imp. Shield Generator | 32% | -7/Factory Alien Tech Used ----------------- None Achievements -------------- None Challenges ------------ None Game ------ Seed CloakingSmartDetector Manual? 0 Play Time 01:28:31 Cumulative 215.4 hours Start 2025.06.14 @ 18:42:56 End 2025.06.14 @ 20:48:56 Sessions 1 Manual Loads 0 Difficulty Rogue Special Mode None Game No. 204 Rogue 204 Adventurer 0 Explorer 0 Win Type - Total 1 Types 1/0/0/0/0/0/0/0/0/0 Lore% 52 Gallery% 59 Achievement% 47 Wizard Run 0 Options --------- Layout 2 ASCII 1 Keyboard 1 Movement Numpad Keybinds 0 Fullscreen 2 Font 32/TamsynBold Map View 50x44 Zoom Use 0% Tactical HUD 1 Map Filters NONE Filters NONE Steam 1 RUN: 4e1c6430-57c1-4e50-a215-770c02da4a50